{"text_format":"3","workbook":"xlsx","n_sheets":1,"sheets":["Foaie de pontaj anuală"],"not_rendered":{"defined_names":2},"read":"whole","date_system":"1900"}

{"sheet":"Foaie de pontaj anuală","index":0,"n_rows":140,"n_cols":12,"rows_kept":140,"merged":[[0,1,1,11],[2,6,2,7],[2,8,2,9],[5,1,5,11],[39,1,39,11],[73,1,73,11],[107,1,107,11]]}
[null,"Fișă de pontaj pentru angajat"]
[]
[null,"Nume angajat:",null,"E-mail:",null,null,"Totaluri de la începutul anului până în prezent:"]
[null,"Manager:",null,"Telefon:",null,null,"Ore normale:",{"$f":"SUM(C16,C27,C38,C50,C61,C72,C84,C95,C106,C118,C129,C140)","v":0},"Ore suplimentare:",{"$f":"SUM(F16,F27,F38,F50,F61,F72,F84,F95,F106,F118,F129,F140)","v":0},"Total:",{"$f":"SUM(H4:J4)","v":0}]
[]
[null,"Ianuarie, februarie, martie      Fișă de pontaj pentru angajat: Zilnic, săptămânal, lunar, anual"]
[null,"Ianuarie","Săptămâna 1","Ore suplimentare","Săptămâna 2","Ore suplimentare ","Săptămâna 3","Ore suplimentare  ","Săptămâna 4","Ore suplimentare   ","Săptămâna 5","Ore suplimentare    "]
[null,"Luni"]
[null,"Marți"]
[null,"Miercuri"]
[null,"Joi"]
[null,"Vineri"]
[null,"Sâmbătă"]
[null,"Duminică"]
[null,"Totalul orelor săptămânale",{"$f":"SUBTOTAL(109,Ianuarie[Săptămâna 1])","v":0},{"$f":"SUBTOTAL(109,Ianuarie[Ore suplimentare])","v":0},{"$f":"SUBTOTAL(109,Ianuarie[Săptămâna 2])","v":0},{"$f":"SUBTOTAL(109,Ianuarie[[Ore suplimentare ]])","v":0},{"$f":"SUBTOTAL(109,Ianuarie[Săptămâna 3])","v":0},{"$f":"SUBTOTAL(109,Ianuarie[[Ore suplimentare  ]])","v":0},{"$f":"SUBTOTAL(109,Ianuarie[Săptămâna 4])","v":0},{"$f":"SUBTOTAL(109,Ianuarie[[Ore suplimentare   ]])","v":0},{"$f":"SUBTOTAL(109,Ianuarie[Săptămâna 5])","v":0},{"$f":"SUBTOTAL(109,Ianuarie[[Ore suplimentare    ]])","v":0}]
[null,"Ian. total: Ore normale",{"$f":"SUM(Ianuarie[[#Totals],[Săptămâna 1]],Ianuarie[[#Totals],[Săptămâna 2]],Ianuarie[[#Totals],[Săptămâna 3]],Ianuarie[[#Totals],[Săptămâna 4]],Ianuarie[[#Totals],[Săptămâna 5]])","v":0},"Ian. total: Ore suplimentare",null,{"$f":"SUM(Ianuarie[[#Totals],[Ore suplimentare]],Ianuarie[[#Totals],[Ore suplimentare ]],Ianuarie[[#Totals],[Ore suplimentare  ]],Ianuarie[[#Totals],[Ore suplimentare   ]],Ianuarie[[#Totals],[Ore suplimentare    ]])","v":0}]
[]
[null,"Februarie","Săptămâna 1","Ore suplimentare","Săptămâna 2","Ore suplimentare ","Săptămâna 3","Ore suplimentare  ","Săptămâna 4","Ore suplimentare   ","Săptămâna 5","Ore suplimentare    "]
[null,"Luni"]
[null,"Marți"]
[null,"Miercuri"]
[null,"Joi"]
[null,"Vineri"]
[null,"Sâmbătă"]
[null,"Duminică"]
[null,"Totalul orelor săptămânale",{"$f":"SUBTOTAL(109,Februarie[Săptămâna 1])","v":0},{"$f":"SUBTOTAL(109,Februarie[Ore suplimentare])","v":0},{"$f":"SUBTOTAL(109,Februarie[Săptămâna 2])","v":0},{"$f":"SUBTOTAL(109,Februarie[[Ore suplimentare ]])","v":0},{"$f":"SUBTOTAL(109,Februarie[Săptămâna 3])","v":0},{"$f":"SUBTOTAL(109,Februarie[[Ore suplimentare  ]])","v":0},{"$f":"SUBTOTAL(109,Februarie[Săptămâna 4])","v":0},{"$f":"SUBTOTAL(109,Februarie[[Ore suplimentare   ]])","v":0},{"$f":"SUBTOTAL(109,Februarie[Săptămâna 5])","v":0},{"$f":"SUBTOTAL(109,Februarie[[Ore suplimentare    ]])","v":0}]
[null,"Feb. total: Ore normale",{"$f":"SUM(Februarie[[#Totals],[Săptămâna 1]],Februarie[[#Totals],[Săptămâna 2]],Februarie[[#Totals],[Săptămâna 3]],Februarie[[#Totals],[Săptămâna 4]],Februarie[[#Totals],[Săptămâna 5]])","v":0},"Feb. total: Ore suplimentare",null,{"$f":"SUM(Februarie[[#Totals],[Ore suplimentare]],Februarie[[#Totals],[Ore suplimentare ]],Februarie[[#Totals],[Ore suplimentare  ]],Februarie[[#Totals],[Ore suplimentare   ]],Februarie[[#Totals],[Ore suplimentare    ]])","v":0}]
[]
[null,"Martie","Săptămâna 1","Ore suplimentare","Săptămâna 2","Ore suplimentare ","Săptămâna 3","Ore suplimentare  ","Săptămâna 4","Ore suplimentare   ","Săptămâna 5","Ore suplimentare    "]
[null,"Luni"]
[null,"Marți"]
[null,"Miercuri"]
[null,"Joi"]
[null,"Vineri"]
[null,"Sâmbătă"]
[null,"Duminică"]
[null,"Totalul orelor săptămânale",{"$f":"SUBTOTAL(109,Martie[Săptămâna 1])","v":0},{"$f":"SUBTOTAL(109,Martie[Ore suplimentare])","v":0},{"$f":"SUBTOTAL(109,Martie[Săptămâna 2])","v":0},{"$f":"SUBTOTAL(109,Martie[[Ore suplimentare ]])","v":0},{"$f":"SUBTOTAL(109,Martie[Săptămâna 3])","v":0},{"$f":"SUBTOTAL(109,Martie[[Ore suplimentare  ]])","v":0},{"$f":"SUBTOTAL(109,Martie[Săptămâna 4])","v":0},{"$f":"SUBTOTAL(109,Martie[[Ore suplimentare   ]])","v":0},{"$f":"SUBTOTAL(109,Martie[Săptămâna 5])","v":0},{"$f":"SUBTOTAL(109,Martie[[Ore suplimentare    ]])","v":0}]
[null,"Mar. total: Ore normale",{"$f":"SUM(Martie[[#Totals],[Săptămâna 1]],Martie[[#Totals],[Săptămâna 2]],Martie[[#Totals],[Săptămâna 3]],Martie[[#Totals],[Săptămâna 4]],Martie[[#Totals],[Săptămâna 5]])","v":0},"Mar. total: Ore suplimentare",null,{"$f":"SUM(Martie[[#Totals],[Ore suplimentare]],Martie[[#Totals],[Ore suplimentare ]],Martie[[#Totals],[Ore suplimentare  ]],Martie[[#Totals],[Ore suplimentare   ]],Martie[[#Totals],[Ore suplimentare    ]])","v":0}]
[]
[null,"Aprilie, mai, iunie      Fișă de pontaj pentru angajat: Zilnic, săptămânal, lunar, anual"]
[null,"Aprilie","Săptămâna 1","Ore suplimentare","Săptămâna 2","Ore suplimentare ","Săptămâna 3","Ore suplimentare  ","Săptămâna 4","Ore suplimentare   ","Săptămâna 5","Ore suplimentare    "]
[null,"Luni"]
[null,"Marți"]
[null,"Miercuri"]
[null,"Joi"]
[null,"Vineri"]
[null,"Sâmbătă"]
[null,"Duminică"]
[null,"Totalul orelor săptămânale",{"$f":"SUBTOTAL(109,Aprilie[Săptămâna 1])","v":0},{"$f":"SUBTOTAL(109,Aprilie[Ore suplimentare])","v":0},{"$f":"SUBTOTAL(109,Aprilie[Săptămâna 2])","v":0},{"$f":"SUBTOTAL(109,Aprilie[[Ore suplimentare ]])","v":0},{"$f":"SUBTOTAL(109,Aprilie[Săptămâna 3])","v":0},{"$f":"SUBTOTAL(109,Aprilie[[Ore suplimentare  ]])","v":0},{"$f":"SUBTOTAL(109,Aprilie[Săptămâna 4])","v":0},{"$f":"SUBTOTAL(109,Aprilie[[Ore suplimentare   ]])","v":0},{"$f":"SUBTOTAL(109,Aprilie[Săptămâna 5])","v":0},{"$f":"SUBTOTAL(109,Aprilie[[Ore suplimentare    ]])","v":0}]
[null,"Apr. total: Ore normale",{"$f":"SUM(Aprilie[[#Totals],[Săptămâna 1]],Aprilie[[#Totals],[Săptămâna 2]],Aprilie[[#Totals],[Săptămâna 3]],Aprilie[[#Totals],[Săptămâna 4]],Aprilie[[#Totals],[Săptămâna 5]])","v":0},"Apr. total: Ore suplimentare",null,{"$f":"SUM(Aprilie[[#Totals],[Ore suplimentare]],Aprilie[[#Totals],[Ore suplimentare ]],Aprilie[[#Totals],[Ore suplimentare  ]],Aprilie[[#Totals],[Ore suplimentare   ]],Aprilie[[#Totals],[Ore suplimentare    ]])","v":0}]
[]
[null,"Mai","Săptămâna 1","Ore suplimentare","Săptămâna 2","Ore suplimentare ","Săptămâna 3","Ore suplimentare  ","Săptămâna 4","Ore suplimentare   ","Săptămâna 5","Ore suplimentare    "]
[null,"Luni"]
[null,"Marți"]
[null,"Miercuri"]
[null,"Joi"]
[null,"Vineri"]
[null,"Sâmbătă"]
[null,"Duminică"]
[null,"Totalul orelor săptămânale",{"$f":"SUBTOTAL(109,Mai[Săptămâna 1])","v":0},{"$f":"SUBTOTAL(109,Mai[Ore suplimentare])","v":0},{"$f":"SUBTOTAL(109,Mai[Săptămâna 2])","v":0},{"$f":"SUBTOTAL(109,Mai[[Ore suplimentare ]])","v":0},{"$f":"SUBTOTAL(109,Mai[Săptămâna 3])","v":0},{"$f":"SUBTOTAL(109,Mai[[Ore suplimentare  ]])","v":0},{"$f":"SUBTOTAL(109,Mai[Săptămâna 4])","v":0},{"$f":"SUBTOTAL(109,Mai[[Ore suplimentare   ]])","v":0},{"$f":"SUBTOTAL(109,Mai[Săptămâna 5])","v":0},{"$f":"SUBTOTAL(109,Mai[[Ore suplimentare    ]])","v":0}]
[null,"Mai total: Ore normale",{"$f":"SUM(Mai[[#Totals],[Săptămâna 1]],Mai[[#Totals],[Săptămâna 2]],Mai[[#Totals],[Săptămâna 3]],Mai[[#Totals],[Săptămâna 4]],Mai[[#Totals],[Săptămâna 5]])","v":0},"Mai total: Ore suplimentare",null,{"$f":"SUM(Mai[[#Totals],[Ore suplimentare]],Mai[[#Totals],[Ore suplimentare ]],Mai[[#Totals],[Ore suplimentare  ]],Mai[[#Totals],[Ore suplimentare   ]],Mai[[#Totals],[Ore suplimentare    ]])","v":0}]
[]
[null,"Iunie","Săptămâna 1","Ore suplimentare","Săptămâna 2","Ore suplimentare ","Săptămâna 3","Ore suplimentare  ","Săptămâna 4","Ore suplimentare   ","Săptămâna 5","Ore suplimentare    "]
[null,"Luni"]
[null,"Marți"]
[null,"Miercuri"]
[null,"Joi"]
[null,"Vineri"]
[null,"Sâmbătă"]
[null,"Duminică"]
[null,"Totalul orelor săptămânale",{"$f":"SUBTOTAL(109,Iunie[Săptămâna 1])","v":0},{"$f":"SUBTOTAL(109,Iunie[Ore suplimentare])","v":0},{"$f":"SUBTOTAL(109,Iunie[Săptămâna 2])","v":0},{"$f":"SUBTOTAL(109,Iunie[[Ore suplimentare ]])","v":0},{"$f":"SUBTOTAL(109,Iunie[Săptămâna 3])","v":0},{"$f":"SUBTOTAL(109,Iunie[[Ore suplimentare  ]])","v":0},{"$f":"SUBTOTAL(109,Iunie[Săptămâna 4])","v":0},{"$f":"SUBTOTAL(109,Iunie[[Ore suplimentare   ]])","v":0},{"$f":"SUBTOTAL(109,Iunie[Săptămâna 5])","v":0},{"$f":"SUBTOTAL(109,Iunie[[Ore suplimentare    ]])","v":0}]
[null,"Iun. total: Ore normale",{"$f":"SUM(Iunie[[#Totals],[Săptămâna 1]],Iunie[[#Totals],[Săptămâna 2]],Iunie[[#Totals],[Săptămâna 3]],Iunie[[#Totals],[Săptămâna 4]],Iunie[[#Totals],[Săptămâna 5]])","v":0},"Iun. total: Ore suplimentare",null,{"$f":"SUM(Iunie[[#Totals],[Ore suplimentare]],Iunie[[#Totals],[Ore suplimentare ]],Iunie[[#Totals],[Ore suplimentare  ]],Iunie[[#Totals],[Ore suplimentare   ]],Iunie[[#Totals],[Ore suplimentare    ]])","v":0}]
[]
[null,"Iulie, august, septembrie      Fișă de pontaj pentru angajat: Zilnic, săptămânal, lunar, anual"]
[null,"Iulie","Săptămâna 1","Ore suplimentare","Săptămâna 2","Ore suplimentare ","Săptămâna 3","Ore suplimentare  ","Săptămâna 4","Ore suplimentare   ","Săptămâna 5","Ore suplimentare    "]
[null,"Luni"]
[null,"Marți"]
[null,"Miercuri"]
[null,"Joi"]
[null,"Vineri"]
[null,"Sâmbătă"]
[null,"Duminică"]
[null,"Totalul orelor săptămânale",{"$f":"SUBTOTAL(109,Iulie[Săptămâna 1])","v":0},{"$f":"SUBTOTAL(109,Iulie[Ore suplimentare])","v":0},{"$f":"SUBTOTAL(109,Iulie[Săptămâna 2])","v":0},{"$f":"SUBTOTAL(109,Iulie[[Ore suplimentare ]])","v":0},{"$f":"SUBTOTAL(109,Iulie[Săptămâna 3])","v":0},{"$f":"SUBTOTAL(109,Iulie[[Ore suplimentare  ]])","v":0},{"$f":"SUBTOTAL(109,Iulie[Săptămâna 4])","v":0},{"$f":"SUBTOTAL(109,Iulie[[Ore suplimentare   ]])","v":0},{"$f":"SUBTOTAL(109,Iulie[Săptămâna 5])","v":0},{"$f":"SUBTOTAL(109,Iulie[[Ore suplimentare    ]])","v":0}]
[null,"Iul. total: Ore normale",{"$f":"SUM(Iulie[[#Totals],[Săptămâna 1]],Iulie[[#Totals],[Săptămâna 2]],Iulie[[#Totals],[Săptămâna 3]],Iulie[[#Totals],[Săptămâna 4]],Iulie[[#Totals],[Săptămâna 5]])","v":0},"Iul. total: Ore suplimentare",null,{"$f":"SUM(Iulie[[#Totals],[Ore suplimentare]],Iulie[[#Totals],[Ore suplimentare ]],Iulie[[#Totals],[Ore suplimentare  ]],Iulie[[#Totals],[Ore suplimentare   ]],Iulie[[#Totals],[Ore suplimentare    ]])","v":0}]
[]
[null,"August","Săptămâna 1","Ore suplimentare","Săptămâna 2","Ore suplimentare ","Săptămâna 3","Ore suplimentare  ","Săptămâna 4","Ore suplimentare   ","Săptămâna 5","Ore suplimentare    "]
[null,"Luni"]
[null,"Marți"]
[null,"Miercuri"]
[null,"Joi"]
[null,"Vineri"]
[null,"Sâmbătă"]
[null,"Duminică"]
[null,"Totalul orelor săptămânale",{"$f":"SUBTOTAL(109,August[Săptămâna 1])","v":0},{"$f":"SUBTOTAL(109,August[Ore suplimentare])","v":0},{"$f":"SUBTOTAL(109,August[Săptămâna 2])","v":0},{"$f":"SUBTOTAL(109,August[[Ore suplimentare ]])","v":0},{"$f":"SUBTOTAL(109,August[Săptămâna 3])","v":0},{"$f":"SUBTOTAL(109,August[[Ore suplimentare  ]])","v":0},{"$f":"SUBTOTAL(109,August[Săptămâna 4])","v":0},{"$f":"SUBTOTAL(109,August[[Ore suplimentare   ]])","v":0},{"$f":"SUBTOTAL(109,August[Săptămâna 5])","v":0},{"$f":"SUBTOTAL(109,August[[Ore suplimentare    ]])","v":0}]
[null,"Aug. total: Ore normale",{"$f":"SUM(August[[#Totals],[Săptămâna 1]],August[[#Totals],[Săptămâna 2]],August[[#Totals],[Săptămâna 3]],August[[#Totals],[Săptămâna 4]],August[[#Totals],[Săptămâna 5]])","v":0},"Aug. total: Ore suplimentare",null,{"$f":"SUM(August[[#Totals],[Ore suplimentare]],August[[#Totals],[Ore suplimentare ]],August[[#Totals],[Ore suplimentare  ]],August[[#Totals],[Ore suplimentare   ]],August[[#Totals],[Ore suplimentare    ]])","v":0}]
[]
[null,"Septembrie","Săptămâna 1","Ore suplimentare","Săptămâna 2","Ore suplimentare ","Săptămâna 3","Ore suplimentare  ","Săptămâna 4","Ore suplimentare   ","Săptămâna 5","Ore suplimentare    "]
[null,"Luni"]
[null,"Marți"]
[null,"Miercuri"]
[null,"Joi"]
[null,"Vineri"]
[null,"Sâmbătă"]
[null,"Duminică"]
[null,"Totalul orelor săptămânale",{"$f":"SUBTOTAL(109,Septembrie[Săptămâna 1])","v":0},{"$f":"SUBTOTAL(109,Septembrie[Ore suplimentare])","v":0},{"$f":"SUBTOTAL(109,Septembrie[Săptămâna 2])","v":0},{"$f":"SUBTOTAL(109,Septembrie[[Ore suplimentare ]])","v":0},{"$f":"SUBTOTAL(109,Septembrie[Săptămâna 3])","v":0},{"$f":"SUBTOTAL(109,Septembrie[[Ore suplimentare  ]])","v":0},{"$f":"SUBTOTAL(109,Septembrie[Săptămâna 4])","v":0},{"$f":"SUBTOTAL(109,Septembrie[[Ore suplimentare   ]])","v":0},{"$f":"SUBTOTAL(109,Septembrie[Săptămâna 5])","v":0},{"$f":"SUBTOTAL(109,Septembrie[[Ore suplimentare    ]])","v":0}]
[null,"Sep. total: Ore normale",{"$f":"SUM(Septembrie[[#Totals],[Săptămâna 1]],Septembrie[[#Totals],[Săptămâna 2]],Septembrie[[#Totals],[Săptămâna 3]],Septembrie[[#Totals],[Săptămâna 4]],Septembrie[[#Totals],[Săptămâna 5]])","v":0},"Sep. total: Ore suplimentare",null,{"$f":"SUM(Septembrie[[#Totals],[Ore suplimentare]],Septembrie[[#Totals],[Ore suplimentare ]],Septembrie[[#Totals],[Ore suplimentare  ]],Septembrie[[#Totals],[Ore suplimentare   ]],Septembrie[[#Totals],[Ore suplimentare    ]])","v":0}]
[]
[null,"Octombrie, noiembrie, decembrie      Fișă de pontaj pentru angajat: Zilnic, săptămânal, lunar, anual"]
[null,"Octombrie","Săptămâna 1","Ore suplimentare","Săptămâna 2","Ore suplimentare ","Săptămâna 3","Ore suplimentare  ","Săptămâna 4","Ore suplimentare   ","Săptămâna 5","Ore suplimentare    "]
[null,"Luni"]
[null,"Marți"]
[null,"Miercuri"]
[null,"Joi"]
[null,"Vineri"]
[null,"Sâmbătă"]
[null,"Duminică"]
[null,"Totalul orelor săptămânale",{"$f":"SUBTOTAL(109,Octombrie[Săptămâna 1])","v":0},{"$f":"SUBTOTAL(109,Octombrie[Ore suplimentare])","v":0},{"$f":"SUBTOTAL(109,Octombrie[Săptămâna 2])","v":0},{"$f":"SUBTOTAL(109,Octombrie[[Ore suplimentare ]])","v":0},{"$f":"SUBTOTAL(109,Octombrie[Săptămâna 3])","v":0},{"$f":"SUBTOTAL(109,Octombrie[[Ore suplimentare  ]])","v":0},{"$f":"SUBTOTAL(109,Octombrie[Săptămâna 4])","v":0},{"$f":"SUBTOTAL(109,Octombrie[[Ore suplimentare   ]])","v":0},{"$f":"SUBTOTAL(109,Octombrie[Săptămâna 5])","v":0},{"$f":"SUBTOTAL(109,Octombrie[[Ore suplimentare    ]])","v":0}]
[null,"Oct. total: Ore normale",{"$f":"SUM(Octombrie[[#Totals],[Săptămâna 1]],Octombrie[[#Totals],[Săptămâna 2]],Octombrie[[#Totals],[Săptămâna 3]],Octombrie[[#Totals],[Săptămâna 4]],Octombrie[[#Totals],[Săptămâna 5]])","v":0},"Oct. total: Ore suplimentare",null,{"$f":"SUM(Octombrie[[#Totals],[Ore suplimentare]],Octombrie[[#Totals],[Ore suplimentare ]],Octombrie[[#Totals],[Ore suplimentare  ]],Octombrie[[#Totals],[Ore suplimentare   ]],Octombrie[[#Totals],[Ore suplimentare    ]])","v":0}]
[]
[null,"Noiembrie","Săptămâna 1","Ore suplimentare","Săptămâna 2","Ore suplimentare ","Săptămâna 3","Ore suplimentare  ","Săptămâna 4","Ore suplimentare   ","Săptămâna 5","Ore suplimentare    "]
[null,"Luni"]
[null,"Marți"]
[null,"Miercuri"]
[null,"Joi"]
[null,"Vineri"]
[null,"Sâmbătă"]
[null,"Duminică"]
[null,"Totalul orelor săptămânale",{"$f":"SUBTOTAL(109,Noiembrie[Săptămâna 1])","v":0},{"$f":"SUBTOTAL(109,Noiembrie[Ore suplimentare])","v":0},{"$f":"SUBTOTAL(109,Noiembrie[Săptămâna 2])","v":0},{"$f":"SUBTOTAL(109,Noiembrie[[Ore suplimentare ]])","v":0},{"$f":"SUBTOTAL(109,Noiembrie[Săptămâna 3])","v":0},{"$f":"SUBTOTAL(109,Noiembrie[[Ore suplimentare  ]])","v":0},{"$f":"SUBTOTAL(109,Noiembrie[Săptămâna 4])","v":0},{"$f":"SUBTOTAL(109,Noiembrie[[Ore suplimentare   ]])","v":0},{"$f":"SUBTOTAL(109,Noiembrie[Săptămâna 5])","v":0},{"$f":"SUBTOTAL(109,Noiembrie[[Ore suplimentare    ]])","v":0}]
[null,"Nov. total: Ore normale",{"$f":"SUM(Noiembrie[[#Totals],[Săptămâna 1]],Noiembrie[[#Totals],[Săptămâna 2]],Noiembrie[[#Totals],[Săptămâna 3]],Noiembrie[[#Totals],[Săptămâna 4]],Noiembrie[[#Totals],[Săptămâna 5]])","v":0},"Nov. total: Ore suplimentare",null,{"$f":"SUM(Noiembrie[[#Totals],[Ore suplimentare]],Noiembrie[[#Totals],[Ore suplimentare ]],Noiembrie[[#Totals],[Ore suplimentare  ]],Noiembrie[[#Totals],[Ore suplimentare   ]],Noiembrie[[#Totals],[Ore suplimentare    ]])","v":0}]
[]
[null,"Decembrie","Săptămâna 1","Ore suplimentare","Săptămâna 2","Ore suplimentare ","Săptămâna 3","Ore suplimentare  ","Săptămâna 4","Ore suplimentare   ","Săptămâna 5","Ore suplimentare    "]
[null,"Luni"]
[null,"Marți"]
[null,"Miercuri"]
[null,"Joi"]
[null,"Vineri"]
[null,"Sâmbătă"]
[null,"Duminică"]
[null,"Totalul orelor săptămânale",{"$f":"SUBTOTAL(109,Decembrie[Săptămâna 1])","v":0},{"$f":"SUBTOTAL(109,Decembrie[Ore suplimentare])","v":0},{"$f":"SUBTOTAL(105,Decembrie[Săptămâna 2])","v":0},{"$f":"SUBTOTAL(109,Decembrie[[Ore suplimentare ]])","v":0},{"$f":"SUBTOTAL(109,Decembrie[Săptămâna 3])","v":0},{"$f":"SUBTOTAL(109,Decembrie[[Ore suplimentare  ]])","v":0},{"$f":"SUBTOTAL(109,Decembrie[Săptămâna 4])","v":0},{"$f":"SUBTOTAL(109,Decembrie[[Ore suplimentare   ]])","v":0},{"$f":"SUBTOTAL(109,Decembrie[Săptămâna 5])","v":0},{"$f":"SUBTOTAL(109,Decembrie[[Ore suplimentare    ]])","v":0}]
[null,"Dec. total: Ore normale",{"$f":"SUM(Decembrie[[#Totals],[Săptămâna 1]],Decembrie[[#Totals],[Săptămâna 2]],Decembrie[[#Totals],[Săptămâna 3]],Decembrie[[#Totals],[Săptămâna 4]],Decembrie[[#Totals],[Săptămâna 5]])","v":0},"Dec. total: Ore suplimentare",null,{"$f":"SUM(Decembrie[[#Totals],[Ore suplimentare]],Decembrie[[#Totals],[Ore suplimentare ]],Decembrie[[#Totals],[Ore suplimentare  ]],Decembrie[[#Totals],[Ore suplimentare   ]],Decembrie[[#Totals],[Ore suplimentare    ]])","v":0}]